fUSD/lending_fUSD_20240727
["ID","MTS","AMOUNT","RATE_DAILY","PERIOD"]
[333420338,1722120656898,-500.0,0.00010999,2]
[333420339,1722120656907,-528.64,0.00010999,2]
[333420340,1722120656916,-500.0,0.00010999,2]
[333420341,1722120656926,-500.0,0.00010999,2]
[333420342,1722120656937,-580.52,0.00010999,2]
[333420343,1722120656949,-500.0,0.00010999,2]
[333420344,1722120656959,-509.92647327,0.00010999,2]
[333420345,1722120656967,-500.0,0.00010999,2]
[333420346,1722120656977,-120516.61390734,0.00011,2]
[333420347,1722120657247,-1879.17624788,0.00011,2]
[333420348,1722120657259,-3530.3334819,0.00011,2]
[333420349,1722120657271,-880.45,0.00011,2]
[333420350,1722120657452,-313.169,0.00010899,2]
[333420351,1722120657465,-343.93,0.00010899,2]
[333420355,1722121204345,1000.0,0.00017,60]
[333420397,1722121831904,-811.05669613,8.219e-05,2]
[333420398,1722121831916,-257.66330387,8.219e-05,2]
[333420399,1722121831926,-300.0,9.109e-05,2]
[333420400,1722121831939,-2774.95936613,9.11e-05,2]
[333420401,1722121831950,-493.5770007,9.11e-05,2]
[333420402,1722121831961,-264.82796935,9.11e-05,2]
[333420403,1722121831972,-2130.98518183,9.11e-05,2]
[333420404,1722121831985,-1030.029,9.11e-05,2]
[333420405,1722121831995,-1941.12504729,9.11e-05,2]
[333420406,1722121832011,-15264.4964347,9.11e-05,2]
[333420407,1722121832021,-165.12,9.11e-05,2]
[333420408,1722121832031,-481.37,9.116e-05,2]
[333420409,1722121832042,-264.43,9.128e-05,2]
[333420410,1722121832052,-910.0,9.13e-05,2]
[333420411,1722121832062,-2575.21,9.13e-05,2]
[333420412,1722121832071,-250.0,9.15e-05,2]
[333420413,1722121832080,-150.0,9.152e-05,2]
[333420414,1722121832090,-13163.11,9.153e-05,2]
[333420415,1722121832099,-268.36,9.157e-05,2]
[333420416,1722121832108,-150.0,9.166e-05,2]
[333420417,1722121832117,-461.88,9.611e-05,2]
[333420418,1722121832127,-461.88,9.614e-05,2]
[333420419,1722121832136,-461.88,9.616e-05,2]
[333420420,1722121832146,-461.88,9.619e-05,2]
[333420421,1722121832155,-461.88,9.622e-05,2]
[333420422,1722121832164,-461.88,9.624e-05,2]
[333420423,1722121832173,-461.88,9.627e-05,2]
[333420424,1722121832182,-461.88,9.629e-05,2]
[333420425,1722121832192,-461.88,9.632e-05,2]
[333420426,1722121832201,-461.88,9.634e-05,2]
[333420427,1722121832211,-461.88,9.637e-05,2]
[333420428,1722121832220,-461.88,9.639e-05,2]
[333420429,1722121832230,-461.88,9.642e-05,2]
[333420430,1722121832239,-461.88,9.644e-05,2]
[333420431,1722121832248,-461.88,9.647e-05,2]
[333420432,1722121832257,-461.88,9.649e-05,2]
[333420433,1722121832267,-461.88,9.652e-05,2]
[333420434,1722121832276,-461.88,9.654e-05,2]
[333420435,1722121832287,-461.88,9.657e-05,2]
[333420436,1722121832296,-461.88,9.659e-05,2]
[333420437,1722121832305,-150.99,9.67e-05,2]
[333420438,1722121832315,-499.99,9.67e-05,2]
[333420439,1722121832324,-300.0,9.9e-05,3]
[333420440,1722121832333,-897.72,9.9e-05,2]
[333420441,1722121832343,-1250.0,0.0001,2]
[333420443,1722121832353,-600.0,0.0001,3]
[333420445,1722121832362,-420.0,0.0001002,2]
[333420447,1722121832372,-833.93,0.00010055,2]
[333420449,1722121832381,-420.31,0.00010055,2]
[333420451,1722121832390,-833.93,0.00010055,2]
[333420453,1722121832400,-833.93,0.00010055,2]
[333420455,1722121832411,-900.0,0.000101,3]
[333420456,1722121832421,-420.31,0.00010141,2]
[333420458,1722121832431,-420.31,0.00010141,2]
[333420460,1722121832441,-420.31,0.00010141,2]
[333420462,1722121832451,-420.31,0.00010141,2]
[333420463,1722121832461,-420.31,0.00010141,2]
[333420465,1722121832470,-413.33,0.00010141,2]
[333420467,1722121832480,-1168.0837,0.00010149,2]
[333420469,1722121832490,-1200.0,0.000102,3]
[333420471,1722121832499,-897.72,0.00010231,2]
[333420473,1722121832508,-420.31,0.00010241,2]
[333420475,1722121832517,-420.31,0.00010241,2]
[333420477,1722121832528,-833.93,0.00010241,2]
[333420479,1722121832540,-833.93,0.00010241,2]
[333420481,1722121832550,-982.95,0.00010241,2]
[333420483,1722121832559,-171.67,0.00010271,2]
[333420485,1722121832571,-910.0,0.00010271,2]
[333420487,1722121832581,-348.14,0.00010278,2]
[333420489,1722121832590,-856.13,0.00010278,2]
[333420491,1722121832599,-253.16,0.00010278,2]
[333420493,1722121832609,-150.0,0.00010278,2]
[333420495,1722121832619,-355.93,0.00010278,2]
[333420497,1722121832628,-150.0,0.00010278,2]
[333420499,1722121832637,-355.93,0.00010278,2]
[333420501,1722121832647,-150.0,0.00010278,2]
[333420503,1722121832657,-150.0,0.00010278,2]
[333420505,1722121832666,-150.0,0.00010278,2]
[333420507,1722121832676,-355.93,0.00010278,2]
[333420508,1722121832685,-355.93,0.00010278,2]
[333420509,1722121832695,-150.0,0.00010278,2]
[333420510,1722121832704,-355.93,0.00010278,2]
[333420511,1722121832713,-150.0,0.00010278,2]
[333420512,1722121832723,-150.0,0.00010278,2]
[333420513,1722121832733,-355.93,0.00010278,2]
[333420514,1722121832742,-355.93,0.00010278,2]
[333420515,1722121832751,-150.0,0.00010278,2]
[333420516,1722121832761,-150.0,0.00010278,2]
[333420517,1722121832771,-355.93,0.00010278,2]
[333420518,1722121832780,-355.93,0.00010278,2]
[333420519,1722121832791,-1500.0,0.000103,3]
[333420520,1722121832800,-300.0,0.000104,3]
[333420521,1722121832810,-1068.72,0.00010431,2]
[333420522,1722121832819,-897.72,0.00010438,2]
[333420523,1722121832829,-10000.0,0.00010448,2]
[333420524,1722121832839,-300.0,0.000105,3]
[333420525,1722121832848,-300.0,0.000106,3]
[333420526,1722121832858,-329.565,0.00010635,2]
[333420527,1722121832868,-300.0,0.000107,3]
[333420528,1722121832878,-897.72,0.00010725,2]
[333420529,1722121832887,-897.72,0.00010725,2]
[333420530,1722121832897,-35526.1765,0.00010735,2]
[333420531,1722121832906,-473.66,0.000108,2]
[333420532,1722121832915,-515.0,0.000108,3]
[333420533,1722121832924,-7500.0,0.000108,2]
[333420534,1722121832938,-897.72,0.00010802,2]
[333420535,1722121832947,-500.0,0.00010812,2]
[333420536,1722121832957,-2367.47599223,0.00010855,2]
[333420537,1722121832967,-897.72,0.00010889,2]
[333420538,1722121832977,-897.72,0.00010889,2]
[333420539,1722121832987,-897.72,0.0001089,2]
[333420540,1722121832996,-897.72,0.0001089,2]
[333420541,1722121833006,-167.79821271,0.00010899,2]
[333420542,1722121833019,-167.79821271,0.00010899,2]
[333420543,1722121833029,-4202.94852092,0.00010899,2]
[333420544,1722121833042,-4202.94852084,0.00010899,2]
[333420545,1722121833052,-4202.94852084,0.00010899,2]
[333420546,1722121833062,-4202.94852084,0.00010899,2]
[333420547,1722121833072,-4202.94852084,0.00010899,2]
[333420548,1722121833085,-4202.94852084,0.00010899,2]
[333420549,1722121833095,-4202.94852084,0.00010899,2]
[333420550,1722121833106,-4202.94852084,0.00010899,2]
[333420551,1722121833116,-4202.94852084,0.00010899,2]
[333420552,1722121833128,-77781.5644,0.000109,2]
[333420553,1722121833138,-167.79821271,0.000109,2]
[333420554,1722121833148,-176.86139305,0.000109,2]
[333420555,1722121833159,-397.92916646,0.000109,2]
[333420556,1722121833169,-4202.94852084,0.000109,2]
[333420557,1722121833180,-39472.06790663,0.000109,2]
[333420558,1722121833191,-1017.0,0.000109,2]
[333420559,1722121833201,-268.50582284,0.000109,2]
[333420560,1722121833211,-247.92528344,0.000109,2]
[333420561,1722121833221,-150.63975881,0.000109,2]
[333420562,1722121833231,-371.0,0.0001092,2]
[333420563,1722121833241,-153.84,0.00010947,2]
[333420564,1722121833251,-428682.79483315,0.00010957,2]
[333420565,1722121833265,-12956.23460994,0.00010957,2]
[333420566,1722121833282,-250.0,0.00010957,2]
[333420567,1722121833296,-544.57707993,0.00010957,2]
[333420568,1722121833308,-418.54007673,0.00010957,2]
[333420569,1722121833320,-837.82808505,0.00010957,2]
[333420570,1722121833332,-700.0,0.00010957,2]
[333420571,1722121833345,-2475.34112254,0.00010957,2]
[333420572,1722121833357,-1203.63841064,0.00010957,2]
[333420573,1722121833369,-2514.72665498,0.00010957,2]
[333420574,1722121833380,-22416.49869489,0.00010957,2]
[333420575,1722121833391,-472.04,0.00010957,2]
[333420576,1722121833412,-795.57001,0.00010957,2]
[333420580,1722121838194,-158.02600734,0.00010858,2]
[333420581,1722121838204,-3238.01683964,0.00010957,2]
[333420582,1722121838215,-16553.54936685,0.00010957,2]
[333420583,1722121838227,-872.65667312,0.00010957,2]
[333420584,1722121838238,-4005.78116,0.00010957,2]
[333420585,1722121838250,-2321.88998186,0.00010957,2]
[333420586,1722121838293,-303.16003,0.00010957,2]
[333420587,1722121838304,-315.0,0.00010957,2]
[333420588,1722121838315,-7702.02094397,0.00010957,2]
[333420589,1722121838326,-623.44199861,0.00010957,2]
[333420590,1722121838355,-66160.91436388,0.00010957,2]
[333420678,1722121840007,-1424.0,0.00010957,2]
[333420679,1722121840018,-276.91061512,0.00010957,2]
[333420680,1722121840030,-500.0,0.00010957,2]
[333420681,1722121840159,-5734.66235805,0.00010957,2]
[333420682,1722121840171,-1216.15843688,0.00010957,2]
[333420683,1722121840183,-22691.78997225,0.00010957,2]
[333420684,1722121840194,-304.27923153,0.00010957,2]
[333420685,1722121840242,-518.7823258,0.00010957,2]
[333420686,1722121840253,-457.06658257,0.00010957,2]
[333420687,1722121840264,-6161.1919003,0.00010957,2]
[333420688,1722121840275,-1819.20996264,0.00010957,2]
[333420689,1722121840316,-4564.99427688,0.00010957,2]
[333420690,1722121840328,-419.77238971,0.00010957,2]
[333420691,1722121840339,-1656.58520388,0.00010957,2]
[333420692,1722121840350,-9181.60895399,0.00010957,2]
[333420693,1722121840361,-340.15000015,0.00010957,2]
[333420694,1722121840372,-899.49864,0.00010957,2]
[333420695,1722121840383,-7114.554265,0.00010957,2]
[333420697,1722121840395,-20386.9197421,0.00010957,2]
[333420749,1722121842968,-6246.50973598,0.00010957,2]
[333420750,1722121842981,-1109.76890871,0.00010957,2]
[333420751,1722121843039,-1371.16970358,0.00010957,2]
[333420752,1722121843051,-688.56235155,0.00010957,2]
[333420753,1722121843233,-652159.4292287,0.00010957,2]
[333420754,1722121843244,-64674.62698066,0.00010957,2]
[333420777,1722121845862,-274.264,0.000106,2]
[333420780,1722121845953,-81.666,0.000106,2]
[333420781,1722121845963,-3772.50100004,0.00010957,2]
[333420782,1722121846052,-1216.99179144,0.00010957,2]
[333420783,1722121846135,-10695.986218,0.00010957,2]
[333420824,1722123031966,-1040.43,8.219e-05,2]
[333420825,1722123031975,-46.24007574,9.901e-05,2]
[333420826,1722123031987,-203.75992426,9.901e-05,2]
[333420827,1722123031998,-300.0,9.922e-05,2]
[333420828,1722123032006,-300.0,9.922e-05,2]
[333420829,1722123032016,-7044.09947279,9.923e-05,2]
[333420830,1722123032034,-6411.16052721,9.923e-05,2]
[333420831,1722123032044,-155.72007915,9.924e-05,2]
[333420832,1722123032054,-1000.0,9.952e-05,2]
[333420833,1722123032064,-171.67,9.987e-05,2]
[333420834,1722123032074,-150.0,0.00010278,2]
[333420835,1722123032084,-150.0,0.00010278,2]
[333420836,1722123032093,-150.0,0.00010278,2]
[333420837,1722123032103,-150.0,0.00010278,2]
[333420838,1722123032112,-150.0,0.00010278,2]
[333420839,1722123032121,-150.0,0.00010278,2]
[333420840,1722123032130,-150.0,0.00010378,2]
[333420841,1722123032139,-300.0,0.00010378,2]
[333420842,1722123032149,-1040.43,0.00010472,2]
[333420843,1722123032158,-12682.12287453,0.00010497,2]
[333420844,1722123032170,-5423.1901734,0.00010497,2]
[333420845,1722123032180,-150.0,0.00010499,2]
[333420846,1722123032190,-150.0,0.000105,2]
[333420847,1722123032199,-150.0,0.000105,2]
[333420848,1722123032209,-150.0,0.000105,2]
[333420849,1722123032218,-758.57,0.000105,2]
[333420850,1722123032228,-300.0,0.000105,2]
[333420851,1722123032237,-425.65,0.000105,2]
[333420852,1722123032248,-282.67,0.000105,2]
[333420853,1722123032257,-1059.48,0.000105,2]
[333420854,1722123032267,-262.24,0.000105,2]
[333420855,1722123032277,-150.0,0.000105,2]
[333420856,1722123032286,-153.53611235,0.000105,2]
[333420857,1722123032298,-272.11388765,0.000105,2]
[333420858,1722123032308,-591.18,0.000105,2]
[333420859,1722123032318,-46.06559345,0.000105,2]
[333420860,1722123032330,-103.93440655,0.000105,2]
[333420862,1722123032339,-171.18,0.000105,2]
[333420865,1722123032349,-150.0,0.000105,2]
[333420866,1722123032359,-150.0,0.000105,2]
[333420867,1722123032369,-850.14,0.000105,2]
[333420868,1722123032378,-150.0,0.000105,2]
[333420869,1722123032392,-150.0,0.000105,2]
[333420870,1722123032402,-150.0,0.000105,2]
[333420871,1722123032412,-150.0,0.000105,2]
[333420872,1722123032422,-150.0,0.000105,2]
[333420873,1722123032432,-150.0,0.000105,2]
[333420874,1722123032442,-300.0,0.000105,2]
[333420875,1722123032451,-323.19843358,0.00010623,2]
[333420876,1722123032471,-196.42028252,0.00010623,2]
[333420877,1722123032480,-446.04470005,0.00010699,2]
[333420878,1722123032492,-548.34318324,0.00010699,2]
[333420879,1722123032510,-2124.57791671,0.00010699,2]
[333420880,1722123032520,-756.4398,0.0001078,2]
[333420881,1722123032529,-350.51,0.00010799,2]
[333420882,1722123032540,-871.96,0.00010847,2]
[333420883,1722123032549,-2056.9060138,0.00010857,2]
[333420884,1722123032561,-602.4599999,0.00010857,2]
[333420885,1722123032573,-331.9599993,0.00010857,2]
[333420886,1722123032588,-2000.0,0.00010857,2]
[333420887,1722123032613,-577.08950482,0.00010857,2]
[333420888,1722123032625,-1670.90790627,0.00010857,2]
[333420889,1722123032637,-260.67657591,0.00010857,2]
[333420890,1722123032647,-155.72007915,0.00010857,2]
[333420891,1722123032656,-198.34022676,0.00010858,2]
[333420892,1722123032666,-500.0,0.00010869,2]
[333420893,1722123032676,-643.03191283,0.0001087,2]
[333420894,1722123032687,-228.92808717,0.0001087,2]
[333420895,1722123032697,-871.96,0.0001087,2]
[333420896,1722123032706,-672.76206684,0.0001087,2]
[333420900,1722123038015,-199.19793316,0.0001087,2]
[333420901,1722123038025,-518.76412738,0.0001087,2]
[333420902,1722123038378,-353.19587262,0.0001087,2]
[333420903,1722123038389,-366.25412738,0.0001087,2]
[333420904,1722123038402,-505.70587262,0.0001087,2]
[333420905,1722123038412,-871.96,0.0001087,2]
[333420906,1722123038422,-871.96,0.0001087,2]
[333420907,1722123038432,-871.96,0.0001087,2]
[333420908,1722123038441,-871.96,0.0001087,2]
[333420909,1722123038450,-13974.84787509,0.0001088,2]
[333420910,1722123038461,-887.5,0.0001088,2]
[333420911,1722123038480,-774.06996451,0.0001088,2]
[333420912,1722123038491,-11709.60775064,0.0001088,2]
[333420913,1722123038505,-1974.20747044,0.0001088,2]
[333420914,1722123038516,-443.13092382,0.0001088,2]
[333420915,1722123038528,-1100.67125844,0.0001088,2]
[333420916,1722123038539,-312.6138,0.0001088,2]
[333420917,1722123038571,-638.82,0.0001088,2]
[333420918,1722123038583,-655.6964493,0.0001088,2]
[333420920,1722123040077,-3327.25887758,0.0001088,2]
[333420921,1722123040088,-1017.33668832,0.0001088,2]
[333420922,1722123040125,-8821.75096878,0.0001088,2]
[333420923,1722123040175,-17152.036191,0.0001088,2]
[333420924,1722123040186,-84567.13992091,0.0001088,2]
[333420925,1722123040198,-33266.97063895,0.0001088,2]
[333420926,1722123040208,-154.36011772,0.00010899,2]
[333420927,1722123040218,-154.36011768,0.00010899,2]
[333420928,1722123040229,-154.36011768,0.00010899,2]
[333420929,1722123040239,-154.36011768,0.00010899,2]
[333420930,1722123040248,-372.4132612,0.00010899,2]
[333420931,1722123040258,-153.42603743,0.00010899,2]
[333420932,1722123040267,-153.42603736,0.00010899,2]
[333420933,1722123040277,-153.42603736,0.00010899,2]
[333420934,1722123040288,-153.42603736,0.00010899,2]
[333420935,1722123040298,-372.4132612,0.000109,2]
[333420936,1722123040308,-223.07957088,0.000109,2]
[333420937,1722123040318,-154.36011768,0.000109,2]
[333420938,1722123040328,-372.4132612,0.000109,2]
[333420939,1722123040338,-420.0,0.00010914,2]
[333420940,1722123040348,-153.84,0.00010947,2]
[333420941,1722123040358,-9472.89196369,0.00010957,2]
[333420942,1722123040370,-109571.72390297,0.00010957,2]
[333420943,1722123040381,-1150.70064965,0.00010957,2]
[333420944,1722123040398,-706.04,0.00010957,2]
[333420945,1722123040413,-397.63098387,0.00010957,2]
[333420946,1722123040424,-1699.38825899,0.00010957,2]
[333420947,1722123040438,-11051.1857742,0.00010957,2]
[333420948,1722123040450,-3870.18624551,0.00010957,2]
[333420949,1722123040461,-3072.09394039,0.00010957,2]
[333420950,1722123040475,-578.34375556,0.00010957,2]
[333420951,1722123040488,-4608.07243216,0.00010957,2]
[333420952,1722123040500,-373.89184271,0.00010957,2]
[333420953,1722123040512,-1987.59855051,0.00010957,2]
[333420956,1722123043085,-412.0,0.00010957,2]
[333420957,1722123043097,-48973.76785368,0.00010957,2]
[333420958,1722123043109,-54148.12237726,0.00010957,2]
[333420959,1722123043118,-300.39366149,0.00010957,2]
[333420960,1722123043128,-155.56074322,0.00010957,2]
[333420961,1722123043139,-160.13513463,0.00010957,2]
[333420962,1722123043148,-181.59978703,0.00010957,2]
[333420963,1722123043159,-449.00481833,0.00010957,2]
[333420964,1722123043168,-412.62978189,0.00010957,2]
[333420965,1722123043178,-1049.39668644,0.00010957,2]
[333420966,1722123043188,-201.25073099,0.00010957,2]
[333420967,1722123043198,-2000.0,0.00010957,2]
[333420968,1722123043208,-200.0,0.00010957,2]
[333420969,1722123043218,-759.70348169,0.00010957,3]
[333420970,1722123043227,-2000.0,0.00010957,2]
[333420971,1722123043237,-200.0,0.00010957,2]
[333420972,1722123043247,-2000.0,0.00010957,2]
[333420973,1722123043256,-200.0,0.00010957,2]
[333420974,1722123043266,-3000.0,0.00010957,2]
[333420975,1722123043275,-2000.0,0.00010957,2]
[333420976,1722123043284,-200.0,0.00010957,2]
[333420977,1722123043293,-624.0,0.00010958,2]
[333420978,1722123043303,-500.0,0.00010958,2]
[333420979,1722123043313,-497.62005639,0.00010958,2]
[333420980,1722123043323,-500.0,0.00010958,2]
[333420981,1722123043333,-516.80737958,0.00010958,2]
[333420982,1722123043342,-502.78845404,0.00010958,2]
[333420983,1722123043352,-500.40103996,0.00010958,2]
[333420984,1722123043361,-500.0,0.00010958,2]
[333420985,1722123043371,-500.0,0.00010958,2]
[333420986,1722123043380,-500.0,0.00010958,2]
[333420987,1722123043393,-500.0,0.00010958,2]
[333420988,1722123043403,-504.90787821,0.00010958,2]
[333420989,1722123043413,-501.89125519,0.00010958,2]
[333420990,1722123043422,-500.0,0.00010958,2]
[333420991,1722123043433,-534.68,0.00010958,2]
[333420992,1722123043444,-500.0,0.00010958,2]
[333420993,1722123043454,-509.9367527,0.00010958,2]
[333420994,1722123043465,-500.0,0.00010958,2]
[333420995,1722123043475,-503.13126764,0.00010958,2]
[333420996,1722123043484,-500.0,0.00010958,2]
[333420997,1722123043494,-603.53600554,0.00010958,2]
[333420998,1722123043505,-500.0,0.00010958,2]
[333420999,1722123043515,-500.0,0.00010958,2]
[333421000,1722123043525,-255.27,0.00010958,2]
[333421001,1722123043534,-500.0,0.00010958,2]
[333421002,1722123043544,-501.79929062,0.00010958,2]
[333421003,1722123043553,-500.0,0.00010958,2]
[333421004,1722123043563,-500.0,0.00010958,2]
[333421005,1722123043572,-500.3035117,0.00010958,2]
[333421006,1722123043582,-500.0,0.00010958,2]
[333421007,1722123043591,-529.04894645,0.00010958,2]
[333421008,1722123043601,-500.0,0.00010958,2]
[333421009,1722123043611,-187.55794279,0.00010958,2]
[333421010,1722123043620,-645.20486327,0.00010958,2]
[333421011,1722123043630,-500.0,0.00010958,2]
[333421012,1722123043640,-500.0,0.00010958,2]
[333421013,1722123043649,-500.35898585,0.00010958,2]
[333421014,1722123043659,-500.0,0.00010958,2]
[333421015,1722123043669,-500.0,0.00010958,2]
[333421016,1722123043678,-500.000001,0.00010958,2]
[333421017,1722123043688,-500.0,0.00010958,2]
[333421018,1722123043698,-501.09,0.00010958,2]
[333421019,1722123043708,-500.0,0.00010958,2]
[333421020,1722123043718,-500.0,0.00010958,2]
[333421021,1722123043728,-500.0,0.00010958,2]
[333421022,1722123043738,-500.0,0.00010958,2]
[333421023,1722123043748,-500.0,0.00010958,2]
[333421024,1722123043760,-500.0,0.00010958,2]
[333421025,1722123043770,-500.63027092,0.00010958,2]
[333421026,1722123043780,-503.4858148,0.00010958,2]
[333421027,1722123043789,-500.0,0.00010958,2]
[333421028,1722123043799,-500.0,0.00010958,2]
[333421029,1722123043808,-225.92,0.00010958,2]
[333421030,1722123043818,-500.24045796,0.00010958,2]
[333421031,1722123043828,-500.0,0.00010958,2]
[333421032,1722123043837,-500.0,0.00010958,2]
[333421033,1722123043847,-500.0,0.00010958,2]
[333421034,1722123043856,-321.28,0.00010958,2]
[333421035,1722123043866,-500.0,0.00010958,2]
[333421036,1722123043875,-500.0,0.00010958,2]
[333421037,1722123043885,-500.0,0.00010958,2]
[333421038,1722123043894,-500.0,0.00010958,2]
[333421039,1722123043903,-500.0,0.00010958,2]
[333421040,1722123043913,-593.66,0.00010958,2]
[333421041,1722123043923,-500.0,0.00010958,2]
[333421042,1722123043932,-500.0,0.00010958,2]
[333421043,1722123043942,-621.76,0.00010958,2]
[333421044,1722123043952,-500.0,0.00010958,2]
[333421045,1722123044142,-561.61483916,0.00010958,2]
[333421046,1722123044153,-500.0,0.00010958,2]
[333421047,1722123044162,-500.0,0.00010958,2]
[333421048,1722123044172,-500.0,0.00010958,2]
[333421049,1722123044182,-500.0,0.00010958,2]
[333421051,1722123044191,-500.0,0.00010958,2]
[333421052,1722123044201,-500.0,0.00010958,2]
[333421053,1722123044212,-500.0,0.00010958,2]
[333421054,1722123044222,-489.0,0.00010958,2]
[333421055,1722123044231,-500.0,0.00010958,2]
[333421056,1722123044240,-500.0,0.00010958,2]
[333421057,1722123044250,-500.66764893,0.00010958,2]
[333421058,1722123044261,-301.49237904,0.00010958,2]
[333421059,1722123044270,-500.0,0.00010958,2]
[333421060,1722123044280,-349.77,0.00010958,2]
[333421061,1722123044290,-500.0,0.00010958,2]
[333421062,1722123044301,-500.0,0.00010958,2]
[333421063,1722123044311,-500.0,0.00010958,2]
[333421064,1722123044321,-430.7,0.00010958,2]
[333421065,1722123044330,-500.0,0.00010958,2]
[333421066,1722123044340,-500.0,0.00010958,2]
[333421067,1722123044349,-500.0,0.00010958,2]
[333421068,1722123044359,-500.0,0.00010958,2]
[333421069,1722123044369,-500.0,0.00010958,2]
[333421070,1722123044379,-530.72222543,0.00010958,2]
[333421071,1722123044396,-606.09,0.00010958,2]
[333421072,1722123044406,-500.0,0.00010958,2]
[333421073,1722123044416,-500.0,0.00010958,2]
[333421074,1722123044427,-626.49,0.00010958,2]
[333421075,1722123044436,-500.0,0.00010958,2]
[333421076,1722123044447,-500.0,0.00010958,2]
[333421077,1722123044456,-500.0,0.00010958,2]
[333421078,1722123044468,-500.0,0.00010958,2]
[333421079,1722123044478,-547.7,0.00010958,2]
[333421080,1722123044488,-500.0,0.00010958,2]
[333421081,1722123044498,-500.0,0.00010958,2]
[333421082,1722123044509,-500.0,0.00010958,2]
[333421083,1722123044519,-500.0,0.00010958,2]
[333421084,1722123044529,-500.0,0.00010958,2]
[333421085,1722123044538,-500.0,0.00010958,2]
[333421086,1722123044548,-500.0,0.00010958,2]
[333421087,1722123044558,-500.0,0.00010958,2]
[333421088,1722123044567,-500.0,0.00010958,2]
[333421089,1722123044578,-182.03,0.00010958,2]
[333421090,1722123044588,-500.0,0.00010958,2]
[333421091,1722123044598,-264.11,0.00010958,2]
[333421092,1722123044607,-500.0,0.00010958,2]
[333421093,1722123044617,-500.0,0.00010958,2]
[333421094,1722123044627,-500.0,0.00010958,2]
[333421095,1722123044636,-500.0,0.00010958,2]
[333421096,1722123044647,-500.0,0.00010958,2]
[333421097,1722123044656,-500.0,0.00010958,2]
[333421098,1722123044667,-552.83,0.00010958,2]
[333421099,1722123044678,-500.0,0.00010958,2]
[333421100,1722123044688,-500.0,0.00010958,2]
[333421101,1722123044698,-265.94630719,0.00010958,2]
[333421102,1722123044708,-605.71,0.00010958,2]
[333421103,1722123044718,-500.0,0.00010958,2]
[333421104,1722123044728,-500.0,0.00010958,2]
[333421105,1722123044737,-500.0,0.00010958,2]
[333421106,1722123044746,-500.0,0.00010958,2]
[333421107,1722123044756,-500.0,0.00010958,2]
[333421108,1722123044766,-500.0,0.00010958,2]
[333421109,1722123044776,-267.82,0.00010958,2]
[333421110,1722123044786,-500.0,0.00010958,2]
[333421111,1722123044796,-500.0,0.00010958,2]
[333421112,1722123044805,-303.94,0.00010958,2]
[333421113,1722123044814,-500.0,0.00010958,2]
[333421114,1722123044823,-523.3317287,0.00010958,2]
[333421115,1722123044833,-500.0,0.00010958,2]
[333421116,1722123044843,-168.65,0.00010958,2]
[333421117,1722123044852,-500.0,0.00010958,2]
[333421118,1722123044862,-500.0,0.00010958,2]
[333421119,1722123044871,-500.0,0.00010958,2]
[333421120,1722123044881,-500.0,0.00010958,2]
[333421121,1722123044890,-500.0,0.00010958,2]
[333421122,1722123044900,-500.0,0.00010958,2]
[333421123,1722123044909,-500.0,0.00010958,2]
[333421124,1722123044919,-500.0,0.00010958,2]
[333421125,1722123044928,-500.0,0.00010958,2]
[333421126,1722123044938,-500.0,0.00010958,2]
[333421127,1722123044947,-500.0,0.00010958,2]
[333421128,1722123044956,-500.0,0.00010958,2]
[333421129,1722123044966,-500.0,0.00010958,2]